{"text_format":"1","workbook":"xlsx","n_sheets":4,"sheets":["実施計画書","【記入例】","駐車場所略図","施設名"],"not_rendered":{"charts":0,"images":0,"macros":1,"external_links":0,"defined_names":5,"comments":0,"pivot_tables":0},"unopened":[],"bounds":{"document_bytes":16777216,"sheet_cells":100000,"rows_first":2000,"rows_last":500,"rows_between":2000,"halvings":0,"cell_chars":16384,"cell_head_chars":4096},"cells_cut":0,"cells_raw":0,"read":"whole","date_system":"1900"}

{"sheet":"実施計画書","index":0,"n_rows":16,"n_cols":11,"rows_kept":16,"cut":false,"hidden":false,"merged":[[8,7,8,9],[8,10,8,11],[1,5,1,8],[2,5,2,8],[4,5,4,6]]}
[null,null,"県政学習バス　実施計画書案（※入力が必要な箇所は着色部分のみです。その他の部分には自動で入力されます）"]
[null,null,"団 体 名",null,null,"高速料金（特大車）"]
[null,null,"実 施 日",null,null,"利用区間",null,null,null,null,"～"]
[null,null,"参加人数"]
[null,null,"乗降場所",null,null,"合計金額",null,{"$f":"SUM(E11:E15,J2)","v":0}]
[null,null,"駐車場所"]
[]
[]
[null,"施設区分","施設名","見学内容","入館料","滞在時間",null,"時刻",null,null,"次の施設までの\n移動時間"]
["乗降場所",null,{"$f":"D5","v":0},null,null,null,null,"出発時刻",null,null,"約"]
["施設１",null,null,null,null,null,null,{"$f":"IF(C11=\"\",\"\",J10+TIME(0,L10,0))","v":""},"～",{"$f":"IF(C11=\"\",\"\",H11+TIME(0,F11,0))","v":""},"約"]
["施設２",null,null,null,null,null,null,{"$f":"IF(C12=\"\",\"\",J11+TIME(0,L11,0))","v":""},"～",{"$f":"IF(C12=\"\",\"\",H12+TIME(0,F12,0))","v":""},"約"]
["施設３",null,null,null,null,null,null,"","～","","約"]
["施設４",null,null,null,null,null,null,{"$f":"IF(C14=\"\",\"\",J13+TIME(0,L13,0))","v":""},"～",{"$f":"IF(C14=\"\",\"\",H14+TIME(0,F14,0))","v":""},"約"]
["施設５",null,null,null,null,null,null,{"$f":"IF(C15=\"\",\"\",J14+TIME(0,L14,0))","v":""},"～",{"$f":"IF(C15=\"\",\"\",H15+TIME(0,F15,0))","v":""},"約"]
["乗降場所",null,{"$f":"D5","v":0},null,null,null,null,"帰着時刻",null,{"$f":"IFERROR(J15+TIME(0,L15,0),\"\")","v":""}]

{"sheet":"【記入例】","index":1,"n_rows":16,"n_cols":12,"rows_kept":16,"cut":false,"hidden":false,"merged":[[1,5,1,8],[2,5,2,8],[4,5,4,6],[8,7,8,9],[8,10,8,11]]}
[null,null,"県政学習バス　実施計画書"]
[null,null,"団 体 名","○○地区公民館女性部",null,"高速料金（特大車）"]
[null,null,"実 施 日","2025-06-03",null,"利用区間",null,null,null,null,"～"]
[null,null,"参加人数",50]
[null,null,"乗降場所","○○地区公民館",null,"合計金額",null,{"$f":"SUM(E11:E15,J2)","v":2650}]
[null,null,"駐車場所","駐車場内"]
[]
[]
[null,"施設区分","施設名","見学内容","入館料","滞在時間",null,"時刻",null,null,"次の施設までの\n移動時間"]
["乗降場所",null,{"$f":"D5","v":"○○地区公民館"},null,null,null,null,"出発時刻",null,"09:00:00","約",50]
["施設１","県","41_金沢港大野からくり記念館","職員の方の説明希望。その後は館内を自由見学。",550,60,null,{"$f":"IF(C11=\"\",\"\",J10+TIME(0,L10,0))","v":"09:50:00"},"～",{"$f":"IF(C11=\"\",\"\",H11+TIME(0,F11,0))","v":"10:50:00"},"約",15]
["施設２","県","40_金沢港クルーズターミナル","職員の方の説明希望。その後は館内を自由見学。",0,40,null,{"$f":"IF(C12=\"\",\"\",J11+TIME(0,L11,0))","v":"11:05:00"},"～",{"$f":"IF(C12=\"\",\"\",H12+TIME(0,F12,0))","v":"11:45:00"},"約",15]
["施設３","昼食","地場産業振興センター\nアイエリア友禅",null,1600,60,null,"12:00:00","～","13:00:00","約",40]
["施設４","市町","53_トレインパーク白山","職員の方の説明は不要。1階、４階、５階の見学を希望。",500,50,null,{"$f":"IF(C14=\"\",\"\",J13+TIME(0,L13,0))","v":"13:40:00"},"～",{"$f":"IF(C14=\"\",\"\",H14+TIME(0,F14,0))","v":"14:30:00"},"約",30]
["施設５",null,null,null,null,null,null,{"$f":"IF(C15=\"\",\"\",J14+TIME(0,L14,0))","v":""},"～",{"$f":"IF(C15=\"\",\"\",H15+TIME(0,F15,0))","v":""},"約"]
["乗降場所",null,{"$f":"D5","v":"○○地区公民館"},null,null,null,null,"帰着時刻",null,{"$f":"IFERROR(J15+TIME(0,L15,0),\"\")","v":""}]

{"sheet":"駐車場所略図","index":2,"n_rows":14,"n_cols":4,"rows_kept":14,"cut":false,"hidden":false,"merged":[[5,2,5,3],[7,2,7,3],[9,1,9,2],[11,2,11,3],[13,1,13,2],[2,1,2,3],[0,1,0,3],[1,1,1,3],[4,2,4,3]]}
[null,"駐車場所略図"]
["※","５０人乗りの大型バスが駐車できる場所でお願いします。"]
[null,"・一般の方のご迷惑となる場所での駐車はご遠慮ください。\n　（例：交通量が多い道、道幅が狭い道、一車線のみの道、\n　　　　バス停・交差点付近、施設・一般住宅の出入口前など）\n・太枠の中にお書きください。\n　（駐車場所を示した地図の提出でも可）\n・駐車する際の注意事項等があればご記入ください。"]
[]
[null,"団体名："]
[null,"運行日："]
[]
[null,"乗降場所："]
[]
[null,"＜略図＞",null,"＜例＞"]
[]
[null,"昼食場所："]
[]
[null,"＜略図＞",null,"＜例＞"]

{"sheet":"施設名","index":3,"n_rows":133,"n_cols":3,"rows_kept":133,"cut":false,"hidden":true,"merged":[]}
[null,"県施設","市町施設"]
[null,"01_石川県九谷焼美術館","01_大聖寺川浄化センター"]
[null,"02_九谷ダム","02_加賀市環境美化センター"]
[null,"03_山中漆器産業技術センター","03_加賀市美術館"]
[null,"04_水産総合センター \n内水面水産センター","04_加賀市北前船の里資料館"]
[null,"05_いしかわ子ども交流センター小松館","05_加賀市鴨池観察館"]
[null,"06_石川県立尾小屋鉱山資料館","0_中谷宇吉郎雪の科学館"]
[null,"07_石川県立航空プラザ","07_セミナーハウスあいりす"]
[null,"08_木場潟公園","08_九谷焼窯跡展示館"]
[null,"09_木場潟公園(東園地)","09_蘇梁館"]
[null,"10_小松産業技術専門校","10_竹の浦館"]
[null,"11_石川県小松市團十郎芸術劇場うらら","11_山中座"]
[null,"12_翠ヶ丘浄化センター","12_山中温泉芭蕉の館"]
[null,"13_九谷焼技術研修所、九谷焼技術者自立支援工房","13_かが交流プラザさくら"]
[null,"14_いしかわ動物園","14_加賀依緑園"]
[null,"15_石川ハイテク交流センター","15_勧進帳ものがたり館"]
[null,"16_手取川宮竹用水第一発電所","16_こまつ曳山交流館みよっさ"]
[null,"17_手取川宮竹用水第二発電所","17_エコロジーパークこまつ"]
[null,"18_手取川宮竹用水沈砂池","18_南加賀公設地方卸売市場"]
[null,"19_手取川七ヶ用水土地改良区　七ヶ用水発電所","19_しみん防災館（小松市民防災センター）"]
[null,"20_石川県農林総合研究センター林業試験場（樹木公園、展示館）","20_こまつドーム"]
[null,"21_手取川水道事務所（鶴来浄水場）","21_小松市立錦窯展示館"]
[null,"22_石川県ふれあい昆虫館","22_小松市立本陣記念美術館"]
[null,"23_石川県立白山青年の家","23_小松市立宮本三郎美術館"]
[null,"24_農林総合研究センター林業試験場石川ウッドセンター","24_小松市立宮本三郎ふるさと館"]
[null,"25_白山ろくテーマパーク吉岡園地","25_仙叟屋敷ならびに玄庵"]
[null,"26_白山ろくテーマパーク吉野オートキャンプ場","26_小松市立空とこども絵本館"]
[null,"27_中宮温泉ビジターセンター・中宮展示館","27_小松空港"]
[null,"28_市ノ瀬ビジターセンター","28_那谷寺"]
[null,"29_石川県立白山ろく少年自然の家","29_サイエンスヒルズこまつ（ひととものづくり科学館）"]
[null,"30_石川県立白山ろく民俗資料館","30_小松市埋蔵文化財センター"]
[null,"31_手取川総合開発記念館","31_小松市立加賀国府ものがたり館"]
[null,"32_大日川ダム","32_小松市立登窯展示館"]
[null,"33_石川県立大学","33_九谷セラミック・ラボラトリー"]
[null,"34_石川障害者職業能力開発校","34_根上学習センター（子ども宇宙科学室）"]
[null,"35_石川県庁舎","35_KAM能美市九谷焼美術館｜五彩館｜"]
[null,"36_石川県警察本部","36_KAM能美市九谷焼美術館\n｜浅蔵五十吉記念館｜"]
[null,"37_石川県工業試験場","37_KAM能美市九谷焼美術館│体験館│"]
[null,"38_石川県地場産業振興センター","38_能美ふるさとミュージアム"]
[null,"39_いしかわエコハウス","39_能美市防災センター"]
[null,"40_金沢港クルーズターミナル","40_石川ルーツ交流館"]
[null,"41_石川県金沢港大野からくり記念館","41_呉竹文庫"]
[null,"42_石川県銭屋五兵衛記念館","42_松任石川環境クリーンセンター"]
[null,"43_石川県立金沢産業技術専門校","43_白山市立松任中川一政記念美術館"]
[null,"44_バリアフリー体験住宅ほっとあんしんの家","44_白山市立 千代女の里俳句館"]
[null,"45_いしかわ総合スポーツセンター","45_松任ふるさと館"]
[null,"46_石川県犀川左岸浄化センター","46_手取川七ヶ用水土地改良区　白山管理センター"]
[null,"47_石川県安全運転研修所","47_白山市立博物館"]
[null,"48_石川県消防学校","48_パーク獅子吼獅子ワールド館"]
[null,"49_金沢競馬場","49_白山比咩神社宝物館"]
[null,"50_農林総合研究センター　農業試験場","50_白山市立鳥越一向一揆歴史館"]
[null,"51_石川県立音楽堂","51_吉野工芸の里"]
[null,"52_石川県国際交流センター","52_手取川ダム"]
[null,"53_石川県女性センター","53_白山砂防科学館"]
[null,"54_尾張町町民文化館","54_白山恐竜パーク白峰"]
[null,"55_石川県ＮＰＯ活動支援センター「あいむ」","55_林西寺と白山下山佛"]
[null,"56_石川県政記念しいのき迎賓館","56_トレインパーク白山"]
[null,"57_いしかわ生活工芸ミュージアム（伝統産業工芸館）","57_野々市市ふるさと歴史館"]
[null,"58_兼六園","58_野々市市郷土資料館 NoNo（旧魚住家住宅）"]
[null,"59_金沢城公園","59_喜多家住宅"]
[null,"60_石川県立美術館","60_末松廃寺跡"]
[null,"61_石川県立美術館広坂別館・石川県文化財保存修復工房","61_学びの杜ののいち カレード"]
[null,"62_石川県立歴史博物館","62_愛と和　花のギャラリー　ののいち椿館"]
[null,"63_加賀本多博物館","63_日本赤十字社石川県支部"]
[null,"64_国立工芸館","64_石川県赤十字血液センター"]
[null,"65_石川県立能楽堂","65_金沢市中央卸売市場"]
[null,"66_石川県立生涯学習センター","66_金沢福祉用具情報プラザ"]
[null,"67_石川県消費生活支援センター","67_金沢蓄音器館"]
[null,"68_いしかわ子ども交流センター","68_泉鏡花記念館"]
[null,"69_石川県立図書館","69_金沢市立安江金箔工芸館"]
[null,"70_石川県青少年総合研修センター","70_成巽閣"]
[null,"71_奥卯辰山のびのび交流館とんぼテラス","71_金沢能楽美術館"]
[null,"72_石川県夕日寺健民自然園","72_金沢21世紀美術館"]
[null,"73_石川県立自然史資料館","73_金沢市立中村記念美術館"]
[null,"74_保健環境センター","74_前田土佐守家資料館"]
[null,"75_石川県埋蔵文化財センター","75_谷口吉郎・吉生記念 金沢建築館"]
[null,"76_石川県森林公園","76_金沢縄文ワールド\n（金沢市埋蔵文化財センター）"]
[null,"77_いしかわ動物愛護センター","77_金沢市西部環境エネルギーセンター"]
[null,"78_石川県農林総合研究センター砂丘地農業研究センター","78_金沢市東部環境エネルギーセンター"]
[null,"79_石川県西田幾多郎記念哲学館","79_金沢市戸室リサイクルプラザ"]
[null,"80_石川県立看護大学","80_金沢卯辰山工芸工房"]
[null,"81_農林総合研究センター畜産試験場","81_キゴ山ふれあい研修センター"]
[null,"82_石川県志賀オフサイトセンター","82_金沢湯涌江戸村"]
[null,"83_能登原子力センター","83_金沢湯涌夢二館"]
[null,"84_石川県立鹿島少年自然の家","84_金沢湯涌創作の森"]
[null,"85_石川県七尾美術館","85_金沢市こどもアート工房みたに"]
[null,"86_石川県能登島ガラス美術館","86_内灘町歴史民俗資料館「風と砂の館」"]
[null,"87_のとじま臨海公園水族館","87_河北郡市クリーンセンター"]
[null,"88_石川県立輪島漆芸技術研修所","88_河北郡市リサイクルプラザ「エコみらい河北」"]
[null,"89_石川県輪島漆芸美術館","89_津幡町文化会館「シグナス」"]
[null,"90_能登空港（のと里山空港）","90_河愛の里　キンシューレ"]
[null,"91_石川県柳田星の観察館「満天星」","91_津幡ふるさと歴史館　れきしる"]
[null,"92_能登産業技術専門校","92_津幡町住吉公園屋内温水プール「アザレア」"]
[null,"93_のと海洋ふれあいセンター","93_うみっこらんど七塚　海と渚の博物館"]
[null,null,"94_宝達志水町埋蔵文化財センター"]
[null,null,"95_喜多家"]
[null,null,"96_岡部家"]
[null,null,"97_宝コミックフィールド"]
[null,null,"98_国立能登青少年交流の家"]
[null,null,"99_羽咋川潮止水門"]
[null,null,"100_羽咋市歴史民俗資料館"]
[null,null,"101_リサイクルセンター"]
[null,null,"102_宇宙科学博物館\nコスモアイル羽咋"]
[null,null,"103_気多大社"]
[null,null,"104_永光寺"]
[null,null,"105_能登上布会館"]
[null,null,"106_能登テキスタイル・ラボ"]
[null,null,"107_中能登町織物デザインセンター"]
[null,null,"108_雨の宮能登王墓の館"]
[null,null,"109_石動山資料館"]
[null,null,"110_ふるさと創修館"]
[null,null,"111_のと里山里海ミュージアム"]
[null,null,"112_能登国分寺展示館"]
[null,null,"113_国指定史跡七尾城跡"]
[null,null,"114_七尾城史資料館"]
[null,null,"115_懐古館"]
[null,null,"116_花嫁のれん館"]
[null,null,"117_七尾鹿島消防本部"]
[null,null,"118_和倉温泉お祭り会館"]
[null,null,"119_中島お祭り資料館・お祭り伝承館"]
[null,null,"120_能登演劇堂"]
[null,null,"121_のと鉄道「震災語り部観光列車（のと里山里海号）」"]
[null,null,"122_大本山總持寺祖院"]
[null,null,"123_輪島工房長屋"]
[null,null,"124_能登町柳田植物公園"]
[null,null,"125_奥能登クリーンセンター"]
[null,null,"126_能登町真脇遺跡縄文館"]
[null,null,"127_能登町立美術館\n羽根万象美術館"]
[null,null,"128_能登海洋深層水施設「あくあす能登」"]
[null,null,"129_藤波テニスミュージアム"]
[null,null,"130_奥能登国際芸術祭作品"]
[null,null,"131_スズ・シアター・ミュージアム"]
[null,null,"132_珠洲市多目的ホール\n（ラポルトすず）"]